Workbook

Sheet Sheet3
A4: OBRIGAÇÕES BENFICA SAD 2023 - 2026 | G4: TANB | H4: =F9 -> 0.0575 | J4: Data Simulação: | K4: =+TODAY() -> 2023-04-27
G5: Prazo | H5: 3 Anos
B7: Montante a investir | F7: 2500 | H7: (Introduza o montante do investimento)
B9: TANB | F9: 0.0575
B11: TIR Líquida de Impostos e Comissões | F11: =XIRR(E63:AI63,E50:AI50,) -> 0.03952068985
B13: Juros Líquidos de Impostos e Comissões | F13: =+SUM(E63:AI63) -> 293.77085 | AF13: Sim | AG13: Internet
AF14: Não | AG14: Balcão/Telefone
B15: O Cliente já paga Comissão de Guarda de Títulos ? | F15: 1 | H15: (Escolha a opção correta)
B17: O Cliente tem Notas de Lançamento digitais? | F17: 1 | H17: (Escolha a opção correta)
B19: Canal de Subscrição | F19: 1 | H19: (Escolha a opção correta)
B21: Regime Fiscal | F21: 1
B23: Rubricas | D23: Preçário | E23: Cash-Flows Totais
B24: Comissão Guarda Títulos ** | D24: =+IF($F$15=1,0,IF($F$19=1,5,5)) -> 0 | E24: =+SUM(E51:W51) -> 0
B25: Comissão de Subscrição* | D25: =D53 -> 6.5 | E25: =+SUM(E53:W53) -> -6.5
B26: Imposto do Selo | D26: 0.04 | E26: -0.26
B27: Pagamento de Juros Bruto | D27: - | E27: 431.25
B28: IRS | D28: =+IF($F$21=1, 28%, IF($F$21=2, 22.4%, IF($F$21=3,22.4%,17.5%))) -> 0.28 | E28: -120.75
B29: Comissão Rendimentos ** | D29: 0.01 | E29: -3.105
B30: Comissão Reembolso ** | D30: 0.002 | E30: -5
B31: Portes | D31: =+IF(OR($F$17=2,$F$21=2,$F$21=4),0.4,0) -> 0 | E31: 0
B32: Despesas Expediente** | D32: =+IF(OR($F$17=2,$F$21=2,$F$21=4),1.05,0) -> 0 | E32: 0
B33: IVA | D33: 0.23 | E33: -1.86415
B34: TOTAL | E34: =+SUM(E24:E33) -> 293.77085
B35: * Acresce IS 4%
B36: ** Acresce IVA 23%
B38: Disclamer: Os valores constantes da presente simulação correspondem à taxa interna de rentabilidade (TIR) para um investimento nas Obrigações Benfica SAD 2023 - 2026, ao Preço de Emissão, assumindo que as mesmas são detidas por um investidor residente em território português, que serão mantidas até ao vencimento e reembolsadas na maturidade a 100% do valor nominal e que os cupões recebidos são reinvestidos a uma taxa de juro equivalente à TIR obtida. A Oferta é uma oferta pública de subscrição em Portugal e destina-se a investidores indeterminados, ou seja, ao público em geral, desde que sejam pessoas residentes ou com estabelecimento em Portugal. A Oferta não constitui uma oferta ou promoção de venda, compra ou subscrição de quaisquer títulos, particularmente no que respeita a qualquer pessoa a quem estejam legalmente vedadas essas operações, ou em qualquer jurisdição onde seja considerada ilegal a respetiva venda, compra ou subscrição das Obrigações, designadamente os Estados Unidos da América, a Área Económica Europeia (incluindo Reino Unido e Holanda), Austrália, Canadá, África do Sul e o Japão. Em particular as Obrigações não foram nem serão registadas ao abrigo do US Securities Act de 1933 ou de qualquer outra legislação sobre valores mobiliários aplicável nos Estados Unidos da América e não podem ser, direta ou indiretamente, promovidas ou vendidas nos Estados Unidos da América, ou em qualquer dos seus territórios e possessões ou áreas que se encontrem sujeitas a essa jurisdição, ou a uma “US Person” ou em seu benefício, conforme disposto na Rule 902(k), Regulation S do US Securities Act de 1933.
B47: DETALHES
E49: 2023 | J49: 2024 | P49: 2025 | V49: 2026
B50: Preçário | E50: 2023-05-17 | F50: 2023-06-30 | G50: 2023-09-29 | H50: 2023-10-17 | I50: 2023-12-29 | J50: 2024-03-29 | K50: 2024-05-17 | L50: 2024-06-28 | M50: 2024-09-30 | N50: 2024-10-17 | O50: 2024-12-31 | P50: 2025-03-31 | Q50: 2025-05-19 | R50: 2025-06-30 | S50: 2025-09-30 | T50: 2025-10-17 | U50: 2025-12-31 | V50: 2026-03-31 | W50: 2026-05-18
B51: Comissão Guarda Títulos ** | D51: =+IF($F$15=1,0,IF($F$19=1,5,5)) -> 0 | F51: =-$D$51 -> 0 | G51: =-$D$51 -> 0 | I51: =-$D$51 -> 0 | J51: =-$D$51 -> 0 | L51: =-$D$51 -> 0 | M51: =-$D$51 -> 0 | O51: =-$D$51 -> 0 | P51: =-$D$51 -> 0 | R51: =-$D$51 -> 0 | S51: =-$D$51 -> 0 | U51: =-$D$51 -> 0 | V51: =-$D$51 -> 0
B52: Investimento | D52: - | E52: =-F7 -> -2500 | W52: =+F7 -> 2500
B53: Comissão de Subscrição** | D53: 6.5 | E53: =-D53 -> -6.5
B54: Imposto do Selo | D54: 0.04 | E54: =+E53*$D$54 -> -0.26
B55: Pagamento de Juros Bruto | D55: - | H55: =+$F$7*$F$9*((6*30)/360) -> 71.875 | K55: =+$F$7*$F$9*((6*30)/360) -> 71.875 | N55: =+$F$7*$F$9*((6*30)/360) -> 71.875 | Q55: =+$F$7*$F$9*((6*30)/360) -> 71.875 | T55: =+$F$7*$F$9*((6*30)/360) -> 71.875 | W55: =+$F$7*$F$9*((6*30)/360) -> 71.875
B56: IRS | D56: =+IF($F$21=1, 28%, IF($F$21=2, 22.4%, IF($F$21=3,22.4%,17.5%))) -> 0.28 | H56: =+-H55*$D$56 -> -20.125 | K56: =+-K55*$D$56 -> -20.125 | N56: =+-N55*$D$56 -> -20.125 | Q56: =+-Q55*$D$56 -> -20.125 | T56: =+-T55*$D$56 -> -20.125 | W56: =+-W55*$D$56 -> -20.125
B57: Comissão Rendimentos ** | D57: 0.01 | H57: =-((H55+H56)*$D$57) -> -0.5175 | K57: =-((K55+K56)*$D$57) -> -0.5175 | N57: =-((N55+N56)*$D$57) -> -0.5175 | Q57: =-((Q55+Q56)*$D$57) -> -0.5175 | T57: =-((T55+T56)*$D$57) -> -0.5175 | W57: =-((W55+W56)*$D$57) -> -0.5175
B58: Comissão Reembolso ** | D58: 0.002 | W58: =+-W52*$D$58 -> -5
B59: Portes | D59: =+IF($F$17=1,0,0.4) -> 0 | E59: =+IF($F$17=1,0,IF(AND($F$15=2,OR($F$21=2,$F$21=4)),-$D$59,IF(E$51="",-$D$59,0))) -> 0 | F59: 0 | G59: 0 | H59: 0 | I59: 0 | J59: 0 | K59: 0 | L59: 0 | M59: 0 | N59: 0 | O59: 0 | P59: 0 | Q59: 0 | R59: 0 | S59: 0 | T59: 0 | U59: 0 | V59: 0 | W59: =+IF($F$17=1,0,IF(AND($F$15=2,OR($F$21=2,$F$21=4)),-$D$59,IF(W$51="",-$D$59,0)))*2 -> 0
B60: Despesas Expediente** | D60: =+IF($F$17=1,0,1.05) -> 0 | E60: =+IF($F$17=1,0,IF(AND($F$15=2,OR($F$21=2,$F$21=4)),-$D$60,IF(E$51="",-$D$60,0))) -> 0 | F60: 0 | G60: 0 | H60: 0 | I60: 0 | J60: 0 | K60: 0 | L60: 0 | M60: 0 | N60: 0 | O60: 0 | P60: 0 | Q60: 0 | R60: 0 | S60: 0 | T60: 0 | U60: 0 | V60: 0 | W60: =+IF($F$17=1,0,IF(AND($F$15=2,OR($F$21=2,$F$21=4)),-$D$60,IF(W$51="",-$D$60,0)))*2 -> 0
B61: IVA | D61: 0.23 | E61: =+(E51+E57+E58+E60)*$D$61 -> 0 | F61: 0 | G61: 0 | H61: -0.119025 | I61: 0 | J61: 0 | K61: -0.119025 | L61: 0 | M61: 0 | N61: -0.119025 | O61: 0 | P61: 0 | Q61: -0.119025 | R61: 0 | S61: =+(S51+S57+S58+S60)*$D$61 -> 0 | T61: =+(T51+T57+T58+T60)*$D$61 -> -0.119025 | U61: =+(U51+U57+U58+U60)*$D$61 -> 0 | V61: =+(V51+V57+V58+V60)*$D$61 -> 0 | W61: =+(W51+W57+W58+W60)*$D$61 -> -1.269025
B63: Cash-Flows | E63: =+SUM(E51:E61) -> -2506.76 | F63: =+SUM(F51:F61) -> 0 | G63: =+SUM(G51:G61) -> 0 | H63: =+SUM(H51:H61) -> 51.113475 | I63: =+SUM(I51:I61) -> 0 | J63: =+SUM(J51:J61) -> 0 | K63: 51.113475 | L63: 0 | M63: 0 | N63: 51.113475 | O63: 0 | P63: 0 | Q63: 51.113475 | R63: 0 | S63: =+SUM(S51:S61) -> 0 | T63: =+SUM(T51:T61) -> 51.113475 | U63: =+SUM(U51:U61) -> 0 | V63: =+SUM(V51:V61) -> 0 | W63: =+SUM(W51:W61) -> 2544.963475
B65: * Acresce IS 4%
B67: ** Acresce IVA 23%
